fUST/lending_fUST_20240310
["ID","MTS","AMOUNT","RATE_DAILY","PERIOD"]
[318107500,1710079851219,-1425.87,0.00022739,2]
[318107501,1710079851229,-1425.87,0.00022739,2]
[318107502,1710079851239,-1425.87,0.00022739,2]
[318107503,1710079851249,-1425.87,0.00022739,2]
[318107504,1710079851260,-1425.87,0.00022739,2]
[318107505,1710079851270,-232.31627998,0.00022739,2]
[318107506,1710079851279,-710.15,0.00022739,2]
[318107507,1710079851289,-710.15,0.00022739,2]
[318107508,1710079851298,-710.15,0.00022739,2]
[318107509,1710079851308,-710.15,0.00022739,2]
[318107510,1710079851317,-710.15,0.00022739,2]
[318107511,1710079851327,-710.15,0.00022739,2]
[318107512,1710079851337,-710.15,0.00022739,2]
[318107513,1710079851346,-710.15,0.00022739,2]
[318107514,1710079851356,-710.15,0.00022739,2]
[318107515,1710079851366,-710.15,0.00022739,2]
[318107516,1710079851375,-178.99146959,0.00022836,2]
[318107517,1710079851385,-1000.0,0.00022836,7]
[318107518,1710079851394,-1000.0,0.00022836,7]
[318107519,1710079851404,-212.82276533,0.00022836,2]
[318107520,1710079851413,-164.22422372,0.00022836,2]
[318107521,1710079851423,-1000.0,0.00022836,7]
[318107522,1710079851433,-1183.94274147,0.0002287,2]
[318107523,1710079851442,-500.0,0.00022893,2]
[318107524,1710079851452,-500.0,0.00022893,2]
[318107525,1710079851462,-1738.03,0.00022894,2]
[318107526,1710079851471,-500.0,0.00022894,2]
[318107527,1710079851481,-773.03,0.00022894,2]
[318107528,1710079851491,-967.47,0.00022894,2]
[318107529,1710079851501,-500.0,0.00022927,2]
[318107530,1710079851511,-500.0,0.00022927,2]
[318107531,1710079851520,-3079.28,0.00022927,2]
[318107532,1710079851530,-500.0,0.00022927,2]
[318107533,1710079851540,-500.0,0.00022927,2]
[318107534,1710079851550,-645.24,0.00022927,2]
[318107535,1710079851559,-500.0,0.00022927,2]
[318107536,1710079851569,-500.0,0.00022927,2]
[318107537,1710079851579,-1425.87,0.00022927,2]
[318107538,1710079851589,-212.57466358,0.00022928,2]
[318107539,1710079851598,-531.29,0.00022993,2]
[318107540,1710079851609,-758.47,0.00022993,2]
[318107541,1710079851619,-520.58,0.00022993,2]
[318107542,1710079851629,-500.0,0.00022993,2]
[318107543,1710079851638,-348.60382828,0.00022993,2]
[318107544,1710079851648,-435.39712298,0.00022993,2]
[318107545,1710079851657,-571.01,0.00022993,2]
[318107546,1710079851666,-992.46,0.00022993,2]
[318107547,1710079851675,-710.05,0.00022993,2]
[318107548,1710079851684,-878.47,0.00022993,2]
[318107549,1710079851693,-211.0,0.00022994,2]
[318107550,1710079851702,-500.0,0.00022994,2]
[318107551,1710079851711,-500.0,0.00022994,2]
[318107552,1710079851722,-715.65,0.00022994,2]
[318107553,1710079851731,-500.0,0.00022994,2]
[318107554,1710079851740,-1738.03,0.00022994,2]
[318107555,1710079851750,-500.0,0.00022994,2]
[318107556,1710079851761,-3079.28,0.00022994,2]
[318107557,1710079851770,-463.13169475,0.00022994,2]
[318107558,1710079851779,-500.0,0.00022994,2]
[318107559,1710079851788,-500.0,0.00022994,2]
[318107560,1710079851798,-773.03,0.00022994,2]
[318107561,1710079851807,-500.0,0.00022994,2]
[318107562,1710079851817,-645.24,0.00022994,2]
[318107563,1710079851826,-967.47,0.00022994,2]
[318107564,1710079851836,-6501.19,0.00022994,2]
[318107565,1710079851846,-1228.78,0.00022994,2]
[318107566,1710079851855,-500.0,0.00022994,2]
[318107567,1710079851864,-500.0,0.00022994,2]
[318107568,1710079851872,-500.0,0.00022994,2]
[318107569,1710079851881,-1425.87,0.00022994,2]
[318107570,1710079851890,-531.29,0.00022995,2]
[318107571,1710079851899,-758.47,0.00022995,2]
[318107572,1710079851908,-520.58,0.00022995,2]
[318107573,1710079851916,-500.0,0.00022995,2]
[318107574,1710079851927,-500.0,0.00022995,2]
[318107575,1710079851935,-500.0,0.00022995,2]
[318107576,1710079851945,-227.81848017,0.00022995,2]
[318107577,1710079851953,-500.0,0.00022995,2]
[318107578,1710079851962,-715.65,0.00022995,2]
[318107579,1710079851971,-500.0,0.00022995,2]
[318107580,1710079851980,-571.01,0.00022995,2]
[318107581,1710079851989,-992.46,0.00022995,2]
[318107582,1710079851998,-1738.03,0.00022995,2]
[318107583,1710079852008,-500.0,0.00022995,2]
[318107584,1710079852017,-3079.28,0.00022995,2]
[318107585,1710079852026,-710.05,0.00022995,2]
[318107586,1710079852034,-500.0,0.00022995,2]
[318107587,1710079852043,-339.98035712,0.00022995,2]
[318107588,1710079852052,-773.03,0.00022995,2]
[318107589,1710079852061,-500.0,0.00022995,2]
[318107590,1710079852069,-645.24,0.00022995,2]
[318107591,1710079852078,-878.47,0.00022995,2]
[318107592,1710079852087,-967.47,0.00022995,2]
[318107593,1710079852095,-6501.19,0.00022995,2]
[318107594,1710079852104,-1228.78,0.00022995,2]
[318107595,1710079852113,-500.0,0.00022995,2]
[318107596,1710079852122,-500.0,0.00022995,2]
[318107597,1710079852144,-500.0,0.00022995,2]
[318107598,1710079852153,-1425.87,0.00022995,2]
[318107599,1710079852162,-531.29,0.00022996,2]
[318107600,1710079852171,-531.29,0.00022996,2]
[318107601,1710079852179,-758.47,0.00022996,2]
[318107602,1710079852189,-758.47,0.00022996,2]
[318107603,1710079852198,-520.58,0.00022996,2]
[318107604,1710079852207,-520.58,0.00022996,2]
[318107605,1710079852216,-500.0,0.00022996,2]
[318107606,1710079852225,-500.0,0.00022996,2]
[318107607,1710079852235,-500.0,0.00022996,2]
[318107608,1710079852244,-500.0,0.00022996,2]
[318107609,1710079852253,-500.0,0.00022996,2]
[318107610,1710079852262,-213.15069953,0.00022996,2]
[318107611,1710079852272,-500.0,0.00022996,2]
[318107612,1710079852281,-715.65,0.00022996,2]
[318107613,1710079852290,-500.0,0.00022996,2]
[318107614,1710079852299,-571.01,0.00022996,2]
[318107615,1710079852309,-571.01,0.00022996,2]
[318107616,1710079852318,-992.46,0.00022996,2]
[318107617,1710079852327,-992.46,0.00022996,2]
[318107618,1710079852336,-1738.03,0.00022996,2]
[318107619,1710079852346,-1738.03,0.00022996,2]
[318107620,1710079852355,-500.0,0.00022996,2]
[318107621,1710079852364,-3079.28,0.00022996,2]
[318107622,1710079852374,-710.05,0.00022996,2]
[318107623,1710079852383,-710.05,0.00022996,2]
[318107624,1710079852466,-500.0,0.00022996,2]
[318107625,1710079852476,-773.03,0.00022996,2]
[318107626,1710079852486,-773.03,0.00022996,2]
[318107627,1710079852496,-500.0,0.00022996,2]
[318107628,1710079852505,-645.24,0.00022996,2]
[318107629,1710079852515,-878.47,0.00022996,2]
[318107630,1710079852523,-878.47,0.00022996,2]
[318107631,1710079852533,-967.47,0.00022996,2]
[318107632,1710079852542,-967.47,0.00022996,2]
[318107633,1710079852551,-6501.19,0.00022996,2]
[318107634,1710079852560,-1228.78,0.00022996,2]
[318107635,1710079852570,-252.16340291,0.00022996,2]
[318107636,1710079852579,-500.0,0.00022996,2]
[318107637,1710079852588,-1425.87,0.00022996,2]
[318107638,1710079852597,-263.71302841,0.00022997,7]
[318107639,1710079852606,-184.07669931,0.00022997,2]
[318107640,1710079852616,-1093.12024802,0.00022997,5]
[318107641,1710079852625,-683.49450449,0.00022997,2]
[318107642,1710079852634,-209.80136024,0.00022997,2]
[318107643,1710079852643,-370.03349824,0.00022997,2]
[318107644,1710079852653,-1667.13356781,0.00022997,2]
[318107645,1710079852662,-531.29,0.00022997,2]
[318107646,1710079852671,-531.29,0.00022997,2]
[318107647,1710079852680,-531.29,0.00022997,2]
[318107648,1710079852689,-758.47,0.00022997,2]
[318107649,1710079852699,-758.47,0.00022997,2]
[318107650,1710079852708,-758.47,0.00022997,2]
[318107651,1710079852717,-520.58,0.00022997,2]
[318107652,1710079852727,-520.58,0.00022997,2]
[318107653,1710079852736,-520.58,0.00022997,2]
[318107654,1710079852746,-500.0,0.00022997,2]
[318107655,1710079852759,-500.0,0.00022997,2]
[318107656,1710079852768,-500.0,0.00022997,2]
[318107657,1710079852779,-500.0,0.00022997,2]
[318107658,1710079852788,-500.0,0.00022997,2]
[318107659,1710079852799,-500.0,0.00022997,2]
[318107660,1710079852809,-500.0,0.00022997,2]
[318107661,1710079852818,-500.0,0.00022997,2]
[318107662,1710079852829,-715.65,0.00022997,2]
[318107663,1710079852839,-715.65,0.00022997,2]
[318107664,1710079852848,-500.0,0.00022997,2]
[318107665,1710079852857,-206.62747619,0.00022997,2]
[318107666,1710079852867,-571.01,0.00022997,2]
[318107667,1710079852876,-571.01,0.00022997,2]
[318107668,1710079852885,-571.01,0.00022997,2]
[318107669,1710079852894,-992.46,0.00022997,2]
[318107670,1710079852904,-992.46,0.00022997,2]
[318107671,1710079852913,-992.46,0.00022997,2]
[318107672,1710079852923,-1738.03,0.00022997,2]
[318107673,1710079852932,-1738.03,0.00022997,2]
[318107674,1710079852942,-1738.03,0.00022997,2]
[318107675,1710079852951,-1738.03,0.00022997,2]
[318107676,1710079852961,-1738.20364753,0.00022997,2]
[318107677,1710079852971,-500.0,0.00022997,2]
[318107678,1710079852981,-466.87607367,0.00022997,2]
[318107679,1710079852990,-3079.28,0.00022997,2]
[318107680,1710079852999,-3079.28,0.00022997,2]
[318107681,1710079853010,-710.05,0.00022997,2]
[318107682,1710079853019,-710.05,0.00022997,2]
[318107683,1710079853028,-710.05,0.00022997,2]
[318107684,1710079853038,-500.0,0.00022997,2]
[318107685,1710079853048,-500.0,0.00022997,2]
[318107686,1710079853057,-773.03,0.00022997,2]
[318107687,1710079853067,-773.03,0.00022997,2]
[318107688,1710079853077,-773.03,0.00022997,2]
[318107689,1710079853087,-773.03,0.00022997,2]
[318107690,1710079853096,-773.11478248,0.00022997,2]
[318107691,1710079853106,-500.0,0.00022997,2]
[318107692,1710079853115,-500.0,0.00022997,2]
[318107693,1710079853125,-645.24,0.00022997,2]
[318107694,1710079853135,-645.24,0.00022997,2]
[318107695,1710079853145,-878.47,0.00022997,2]
[318107696,1710079853154,-878.47,0.00022997,2]
[318107697,1710079853164,-878.47,0.00022997,2]
[318107698,1710079853173,-967.47,0.00022997,2]
[318107699,1710079853183,-967.47,0.00022997,2]
[318107700,1710079853192,-967.47,0.00022997,2]
[318107701,1710079853202,-967.47,0.00022997,2]
[318107702,1710079853211,-967.49085679,0.00022997,2]
[318107703,1710079853220,-6501.19,0.00022997,2]
[318107704,1710079853230,-6501.19,0.00022997,2]
[318107705,1710079853240,-6501.19,0.00022997,2]
[318107706,1710079853249,-1228.78,0.00022997,2]
[318107707,1710079853259,-1228.78,0.00022997,2]
[318107708,1710079853269,-151.0,0.00022997,2]
[318107709,1710079853279,-500.0,0.00022997,2]
[318107710,1710079853288,-500.0,0.00022997,2]
[318107711,1710079853298,-1425.87,0.00022997,2]
[318107712,1710079853307,-1425.87,0.00022997,2]
[318107713,1710079853317,-221.179703,0.00022997,2]
[318107714,1710079853327,-531.29,0.00022998,2]
[318107715,1710079853336,-531.29,0.00022998,2]
[318107716,1710079853346,-531.29,0.00022998,2]
[318107717,1710079853355,-531.29,0.00022998,2]
[318107718,1710079853365,-531.32550883,0.00022998,2]
[318107719,1710079853375,-758.47,0.00022998,2]
[318107720,1710079853384,-758.47,0.00022998,2]
[318107721,1710079853393,-758.47,0.00022998,2]
[318107722,1710079853403,-758.47,0.00022998,2]
[318107723,1710079853412,-758.68664007,0.00022998,2]
[318107724,1710079853422,-520.58,0.00022998,2]
[318107725,1710079853432,-520.58,0.00022998,2]
[318107726,1710079853441,-520.58,0.00022998,2]
[318107727,1710079853451,-520.58,0.00022998,2]
[318107728,1710079853460,-520.60006491,0.00022998,2]
[318107729,1710079853469,-500.0,0.00022998,2]
[318107730,1710079853479,-500.0,0.00022998,2]
[318107731,1710079853489,-500.0,0.00022998,2]
[318107732,1710079853499,-579.26410618,0.00022998,2]
[318107733,1710079853510,-500.0,0.00022998,2]
[318107734,1710079853520,-335.43512262,0.00022998,2]
[318107735,1710079853528,-571.01,0.00022998,2]
[318107736,1710079853538,-571.01,0.00022998,2]
[318107737,1710079853547,-571.01,0.00022998,2]
[318107738,1710079853557,-571.01,0.00022998,2]
[318107739,1710079853567,-571.23758534,0.00022998,2]
[318107740,1710079853576,-992.46,0.00022998,2]
[318107741,1710079853585,-992.46,0.00022998,2]
[318107742,1710079853594,-992.46,0.00022998,2]
[318107743,1710079853603,-992.46,0.00022998,2]
[318107744,1710079853612,-992.53229061,0.00022998,2]
[318107745,1710079853622,-3079.28,0.00022998,2]
[318107746,1710079853631,-710.05,0.00022998,2]
[318107747,1710079853640,-710.05,0.00022998,2]
[318107748,1710079853649,-710.05,0.00022998,2]
[318107749,1710079853658,-710.05,0.00022998,2]
[318107750,1710079853668,-710.07092542,0.00022998,2]
[318107751,1710079853677,-354.99853087,0.00022998,2]
[318107752,1710079853686,-500.0,0.00022998,2]
[318107753,1710079853695,-645.24,0.00022998,2]
[318107754,1710079853704,-878.47,0.00022998,2]
[318107755,1710079853713,-878.47,0.00022998,2]
[318107756,1710079853723,-878.47,0.00022998,2]
[318107757,1710079853732,-878.47,0.00022998,2]
[318107758,1710079853741,-878.63233707,0.00022998,2]
[318107759,1710079853752,-1425.87,0.00022998,2]
[318107760,1710079853764,-442.89052451,0.00022999,2]
[318107824,1710080604366,-331.25647707,0.0001776,2]
[318107825,1710080604387,-155.06202481,0.0001776,2]
[318107826,1710080604407,-429.23983527,0.0001776,2]
[318107827,1710080604428,-160.19387848,0.0001776,2]
[318107828,1710080604448,-155.06202481,0.00017761,2]
[318107829,1710080604468,-155.06202481,0.00017761,2]
[318107830,1710080604488,-1951.55607231,0.00017761,2]
[318107831,1710080604509,-155.06202481,0.00017761,2]
[318107832,1710080604530,-280.54842491,0.00017762,2]
[318107833,1710080604550,-188.47150508,0.00017762,2]
[318107834,1710080604570,-539.19119689,0.00017762,2]
[318107835,1710080604591,-1474.41177418,0.00017762,2]
[318107836,1710080604611,-9280.88273657,0.00017762,2]
[318107837,1710080629729,621.24563037,0.0001758,2]
[318107838,1710080675672,-155.06202481,0.00017754,2]
[318107839,1710080675693,-179.72594597,0.00017754,2]
[318107840,1710080675715,-1606.73193015,0.00017754,2]
[318107841,1710080675735,-155.06202481,0.00017755,2]
[318107842,1710080675755,-155.06202481,0.00017755,2]
[318107843,1710080675776,-745.89935805,0.00017756,2]
[318107844,1710080675797,-155.06202481,0.00017756,2]
[318107845,1710080675817,-558.3857874,0.00017757,2]
[318107846,1710080675841,-155.06202481,0.00017757,2]
[318107847,1710080675861,-294.77831715,0.00017758,2]
[318107848,1710080675882,-15258.05486311,0.00017761,2]
[318107849,1710080675903,-110.11367412,0.00017762,2]
[318107912,1710081033241,-280.54842491,0.00017753,2]
[318107913,1710081033250,-155.06202481,0.00017753,2]
[318107914,1710081033259,-528.65561539,0.00017754,2]
[318107915,1710081033269,-745.89935805,0.00017754,2]
[318107916,1710081033278,-155.06202481,0.00017755,2]
[318107917,1710081033287,-20507.87031804,0.00017755,2]
[318107918,1710081033296,-155.06202481,0.00017756,2]
[318107919,1710081033307,-331.25647707,0.00017756,2]
[318107920,1710081033315,-2598.2198964,0.00017756,2]
[318107921,1710081033324,-155.06202481,0.00017757,2]
[318107922,1710081033334,-160.19387848,0.00017757,2]
[318107923,1710081033343,-155.06202481,0.00017757,2]
[318107924,1710081033352,-1474.41177418,0.00017757,2]
[318107925,1710081033361,-155.06202481,0.00017758,2]
[318107926,1710081033370,-188.47150508,0.00017758,2]
[318107927,1710081033380,-15258.05486311,0.00017761,2]
[318107928,1710081033389,-19528.86444527,0.00017762,2]
[318107930,1710081033399,-270.4328404,0.00017764,2]
[318107932,1710081033407,-325.10159524,0.0001814,2]
[318107934,1710081033416,-1017.9514912,0.00018141,2]
[318107935,1710081033426,-833.58423367,0.000189,2]
[318107936,1710081033435,-294.77831715,0.00018995,2]
[318107937,1710081033444,-336.69909941,0.00019,2]
[318107938,1710081033454,-688.710512,0.00019139,2]
[318107939,1710081033463,-500.0,0.00019178,2]
[318107940,1710081033472,-500.0,0.00019178,2]
[318107941,1710081033481,-500.0,0.00019178,2]
[318107943,1710081033490,-500.0,0.00019178,2]
[318107945,1710081033499,-275.85405135,0.00019178,2]
[318107947,1710081033508,-500.0,0.00019178,2]
[318107949,1710081033517,-500.0,0.00019178,2]
[318107951,1710081033527,-500.0,0.00019178,2]
[318107953,1710081033539,-500.0,0.00019178,2]
[318107955,1710081033548,-500.0,0.00019178,2]
[318107957,1710081033558,-500.0,0.00019178,2]
[318107959,1710081033567,-500.0,0.00019178,2]
[318107961,1710081033576,-500.0,0.00019178,2]
[318107963,1710081033585,-500.0,0.00019178,2]
[318107965,1710081033593,-500.0,0.00019178,2]
[318107967,1710081033602,-500.0,0.00019178,2]
[318107968,1710081033611,-500.0,0.00019178,2]
[318107971,1710081033621,-500.0,0.00019178,2]
[318107972,1710081033631,-500.0,0.00019178,2]
[318107974,1710081033640,-500.0,0.00019178,2]
[318107976,1710081033650,-500.0,0.00019178,2]
[318107978,1710081033659,-500.0,0.00019178,2]
[318107981,1710081033675,-257.96348989,0.00019178,2]
[318107984,1710081033694,-500.0,0.00019178,2]
[318107986,1710081033704,-500.0,0.00019178,2]
[318107988,1710081033713,-595.57160137,0.00019178,2]
[318107990,1710081033723,-500.0,0.00019178,2]
[318107992,1710081033732,-500.0,0.00019178,2]
[318108006,1710081033857,-500.0,0.00019178,2]
[318108008,1710081033867,-500.0,0.00019178,2]
[318108010,1710081033876,-500.0,0.00019178,2]
[318108012,1710081033886,-500.0,0.00019178,2]
[318108014,1710081033895,-500.0,0.00019178,2]
[318108016,1710081033905,-500.0,0.00019178,2]
[318108018,1710081033914,-500.0,0.00019178,2]
[318108020,1710081033923,-500.0,0.00019178,2]
[318108021,1710081033933,-500.0,0.00019178,2]
[318108023,1710081033942,-500.0,0.00019178,2]
[318108025,1710081033951,-199.389145,0.00019178,2]
[318108027,1710081033960,-177.504552,0.00019178,2]
[318108029,1710081033970,-250.0,0.00019421,2]
[318108031,1710081033979,-432.104492,0.0001953,2]
[318108033,1710081033988,-238.91871928,0.0002,2]
[318108035,1710081033997,-155.06202481,0.0002,2]
[318108037,1710081034006,-177.504552,0.000203,2]
[318108039,1710081034016,-1145.86791689,0.00020899,2]
[318108041,1710081034024,-3941.83631875,0.00021,2]
[318108043,1710081034034,-1145.86791685,0.00021334,2]
[318108045,1710081034043,-177.504552,0.00021422,2]
[318108047,1710081034052,-416.95147204,0.00021769,2]
[318108245,1710081038589,-500.0,0.00019178,2]
[318108246,1710081038599,-245.27404431,0.00019178,2]
[318108247,1710081038611,-254.72595569,0.00019178,2]
[318108248,1710081038620,-500.0,0.00019178,2]
[318108249,1710081038631,-500.0,0.00019178,2]
[318108250,1710081038640,-500.0,0.00019178,2]
[318108251,1710081038650,-500.0,0.00019178,2]
[318108252,1710081038659,-178.74294332,0.00019178,2]
[318108253,1710081038668,-500.0,0.00019178,2]
[318108254,1710081038678,-500.0,0.00019178,2]
[318108255,1710081038687,-728.91644481,0.00021769,2]
[318108256,1710081038696,-8247.0923253,0.00022,2]
[318108257,1710081038706,-203.0,0.00022,2]
[318108258,1710081038715,-327.45198075,0.00022,2]
[318108259,1710081038724,-203.0,0.00022192,2]
[318108260,1710081038733,-1145.86791685,0.00022204,2]
[318108261,1710081038742,-500.0,0.00022364,2]
[318108262,1710081038751,-368.3038245,0.00022364,2]
[318108263,1710081038760,-500.0,0.00022364,2]
[318108264,1710081038770,-500.0,0.00022364,2]
[318108265,1710081038779,-500.0,0.00022364,2]
[318108266,1710081038788,-475.97658609,0.00022364,2]
[318108267,1710081038797,-500.0,0.00022364,2]
[318108268,1710081038807,-1053.62083389,0.00022365,2]
[318108269,1710081038817,-192.787944,0.00022417,2]
[318108270,1710081038826,-161.054423,0.00022417,2]
[318108271,1710081038835,-32645.4885393,0.0002248,2]
[318108272,1710081038845,-31356.71673212,0.00022481,2]
[318108299,1710081040595,-339.92,0.00022481,2]
[318108301,1710081040607,-611.81,0.00022481,2]
[318108303,1710081040619,-875.0,0.00022481,2]
[318108304,1710081040630,-1150.0,0.00022481,2]
[318108305,1710081040659,-668.61406582,0.00022481,2]
[318108306,1710081040672,-1561.5,0.00022481,2]
[318108307,1710081043084,-327.45198075,0.00022191,2]
[318108308,1710081043093,-3161.674833,0.00022481,2]
[318108330,1710081043749,-956.71026567,0.0002248,2]
[318108331,1710081043815,-2188.03993369,0.0002248,2]
[318108333,1710081043825,-10274.76436906,0.00022481,2]
[318108335,1710081043834,-2199.34661178,0.00022481,2]
[318108353,1710081046588,-71752.04070601,0.00022481,2]
[318108354,1710081046598,-1145.86791685,0.00022639,2]
[318108355,1710081046607,-161.054423,0.00022697,2]
[318108356,1710081046617,-155.29748771,0.00022737,2]
[318108357,1710081046626,-1080.93357906,0.00022737,2]
[318108358,1710081046635,-1522.70568614,0.00022738,2]
[318108359,1710081046645,-500.0,0.00022739,2]
[318108360,1710081046654,-500.0,0.00022739,2]
[318108362,1710081046664,-570.01578939,0.00022739,2]
[318108363,1710081046673,-500.0,0.00022739,2]
[318108365,1710081046682,-500.0,0.00022739,2]
[318108366,1710081046691,-500.0,0.00022739,2]
[318108367,1710081046701,-500.0,0.00022739,2]
[318108368,1710081046711,-500.0,0.00022739,2]
[318108369,1710081046720,-500.0,0.00022739,2]
[318108370,1710081046729,-500.0,0.00022739,2]
[318108371,1710081046739,-858.44,0.00022739,2]
[318108372,1710081046748,-858.44,0.00022739,2]
[318108373,1710081046757,-858.44,0.00022739,2]
[318108374,1710081046767,-858.44,0.00022739,2]
[318108375,1710081046776,-858.44,0.00022739,2]
[318108376,1710081046785,-858.44,0.00022739,2]
[318108377,1710081046794,-858.44,0.00022739,2]
[318108378,1710081046803,-858.44,0.00022739,2]
[318108379,1710081046812,-858.44,0.00022739,2]
[318108380,1710081046822,-858.44,0.00022739,2]
[318108381,1710081046831,-858.44,0.00022739,2]
[318108382,1710081046840,-858.44,0.00022739,2]
[318108383,1710081046849,-858.44,0.00022739,2]
[318108384,1710081046858,-858.44,0.00022739,2]
[318108385,1710081046867,-858.44,0.00022739,2]
[318108386,1710081046876,-858.44,0.00022739,2]
[318108387,1710081046885,-500.0,0.00022739,2]
[318108388,1710081046894,-500.0,0.00022739,2]
[318108389,1710081046904,-500.0,0.00022739,2]
[318108390,1710081046913,-500.0,0.00022739,2]
[318108391,1710081046922,-517.6716287,0.00022739,2]
[318108392,1710081046931,-500.0,0.00022739,2]
[318108393,1710081046940,-500.0,0.00022739,2]
[318108394,1710081046949,-500.0,0.00022739,2]
[318108395,1710081046958,-500.0,0.00022739,2]
[318108396,1710081046967,-500.0,0.00022739,2]
[318108397,1710081046976,-500.0,0.00022739,2]
[318108398,1710081046986,-500.0,0.00022739,2]
[318108399,1710081046995,-500.0,0.00022739,2]
[318108400,1710081047004,-500.0,0.00022739,2]
[318108401,1710081047013,-500.0,0.00022739,2]
[318108402,1710081047023,-436.54074293,0.00022739,2]
[318108403,1710081047032,-500.0,0.00022739,2]
[318108404,1710081047040,-500.0,0.00022739,2]
[318108405,1710081047050,-500.0,0.00022739,2]
[318108406,1710081047058,-500.0,0.00022739,2]
[318108407,1710081047068,-500.0,0.00022739,2]
[318108408,1710081047079,-641.52,0.00022739,2]
[318108409,1710081047089,-641.52,0.00022739,2]
[318108410,1710081047098,-641.52,0.00022739,2]
[318108411,1710081047107,-641.52,0.00022739,2]
[318108412,1710081047117,-500.0,0.00022739,2]
[318108413,1710081047126,-500.0,0.00022739,2]
[318108414,1710081047135,-500.0,0.00022739,2]
[318108415,1710081047144,-500.0,0.00022739,2]
[318108416,1710081047153,-500.0,0.00022739,2]
[318108417,1710081047163,-349.48,0.00022739,2]
[318108418,1710081047172,-500.0,0.00022739,2]
[318108419,1710081047181,-500.0,0.00022739,2]
[318108420,1710081047191,-500.0,0.00022739,2]
[318108421,1710081047200,-500.0,0.00022739,2]
[318108422,1710081047209,-155.12720431,0.00022739,2]
[318108423,1710081047218,-500.0,0.00022739,2]
[318108424,1710081047227,-500.0,0.00022739,2]
[318108425,1710081047237,-500.0,0.00022739,2]
[318108426,1710081047246,-500.0,0.00022739,2]
[318108427,1710081047255,-2708.83,0.00022739,2]
[318108428,1710081047264,-2708.83,0.00022739,2]
[318108429,1710081047273,-500.0,0.00022739,2]
[318108430,1710081047282,-500.0,0.00022739,2]
[318108431,1710081047369,-500.0,0.00022739,2]
[318108432,1710081047381,-500.0,0.00022739,2]
[318108433,1710081047391,-1430.64730183,0.00022836,2]
[318108434,1710081047400,-21110.81760008,0.00022899,2]
[318108435,1710081047410,-947.15419323,0.000229,2]
[318108436,1710081047419,-500.0,0.00022924,2]
[318108437,1710081047429,-500.0,0.00022924,2]
[318108438,1710081047438,-641.52,0.00022924,2]
[318108439,1710081047447,-500.0,0.00022924,2]
[318108440,1710081047457,-500.0,0.00022924,2]
[318108441,1710081047466,-500.0,0.00022924,2]
[318108442,1710081047475,-33582.62569934,0.00022925,2]
[318108443,1710081047484,-858.44,0.00022926,2]
[318108444,1710081047494,-192.787944,0.00022977,2]
[318108445,1710081047503,-161.054423,0.00022977,2]
[318108446,1710081047512,-858.44,0.00022994,2]
[318108447,1710081047521,-500.0,0.00022995,2]
[318108448,1710081047530,-858.44,0.00022995,2]
[318108449,1710081047539,-468.4241836,0.00022995,2]
[318108450,1710081047552,-31.5758164,0.00022995,2]
[318108451,1710081047561,-641.52,0.00022995,2]
[318108452,1710081047571,-500.0,0.00022995,2]
[318108453,1710081047581,-500.0,0.00022995,2]